Cogmind - Beta 12 @@@ ROGUE MODE // 2023.10.05 @ 12:34:59 Player: Trantor Result: Destroyed by as-90510 with Assembled Rifle Performance ------------- Evolutions (0) 0 Regions Visited (2) 400 Robots Destroyed (30) 150 Value Destroyed (559) 559 Prototype IDs (0) 0 Alien Tech Used (0) 0 Bonus (25) 25 TOTAL SCORE: 1134 Bonus ------- Follower Combat Kills 25 Cogmind --------- Core Integrity 0/250 Matter 212/300 Energy 160/160 System Corruption 7% Temperature Cool (5) Movement Treading (240) Ox1 Location -10/Mines Parts ------- > --- POWER (1) -------- Light Nuclear Core > --- PROPULSION (2) --- Light Treads > --- UTILITY (2) ------ Large Storage Unit Hacking Suite > --- WEAPON (2) ------- Assault Rifle Light Cannon > --- INVENTORY (15) --- Ion Engine Light Treads Flight Unit Flight Unit Cesium-ion Thruster Cesium-ion Thruster Medium Storage Unit High-capacity Matter Pod (200) High-capacity Matter Pod (200) Improved Sensor Array Advanced Targeting Computer Utility Shielding Light Cannon Grenade Launcher Peak State ------------ > --- POWER ------------ Light Nuclear Core > --- PROPULSION ------- Light Treads Wheel > --- UTILITY ---------- Large Storage Unit Hacking Suite > --- WEAPON ----------- Assault Rifle Light Cannon > --- INVENTORY -------- Ion Engine Light Treads Light Treads Flight Unit Flight Unit Cesium-ion Thruster Cesium-ion Thruster Medium Storage Unit High-capacity Matter Pod High-capacity Matter Pod Improved Sensor Array Advanced Targeting Computer Utility Shielding Light Cannon Grenade Launcher [Rating: 13] Favorites ----------- Power Ion Engine Engine Ion Engine Power Core Light Nuclear Core Propulsion Aluminum Leg Treads Light Treads Leg Aluminum Leg Wheel Compact Wheel Utility Large Storage Unit Storage Large Storage Unit Hackware Hacking Suite Weapon Assault Rifle Ballistic Gun Assault Rifle Ballistic Cannon Light Cannon Build | -11 -10 -10 ------- Run | Jun Mat Min Slots Evolved . | . . . Power . | . . . Propulsion . | . . . Utility . | . . . Weapon . | . . . Parts Attached 22 | . 17 5 Power 5 | . 4 1 Engine 3 | . 3 . Core 2 | . 1 1 Reactor . | . . . Propulsion 9 | . 7 2 Treads 2 | . 1 1 Leg 2 | . 2 . Wheel 5 | . 4 1 Hover . | . . . Flight . | . . . Utility 2 | . 2 . Device . | . . . Storage 1 | . 1 . Processor . | . . . Hackware 1 | . 1 . Protection . | . . . Artifact . | . . . Weapon 6 | . 4 2 Energy Gun . | . . . Energy Cannon . | . . . Ballistic Gun 5 | . 4 1 Ballistic Cannon 1 | . . 1 Launcher . | . . . Special Weapon . | . . . Impact Weapon . | . . . Slashing Weapon . | . . . Piercing Weapon . | . . . Special Melee Weapon . | . . . Unidentified Prototypes . | . . . Parts Lost 4 | . 2 2 Power . | . . . Propulsion 3 | . 1 2 Utility . | . . . Weapon 1 | . 1 . Highest Loss Streak 2 | . 1 2 To Critical Strikes . | . . . Average Slot Usage (%) 96 | . 95 99 Engine 11 | . 13 8 Core 2 | . . 6 Treads 4 | . . 14 Leg 9 | . 13 . Wheel 13 | . 13 13 Storage 14 | . 14 14 Hackware 11 | . 9 14 Ballistic Gun 25 | . 27 21 Ballistic Cannon 2 | . . 6 Naked Turns . | . . . Heaviest Build 33 | 13 33 30 Greatest Support 20 | 20 20 20 Greatest Overweight (x) 2 | . 2 2 Average Overweight (x) 1 | . 1 1 Largest Inventory Capacity 15 | . 15 15 Average Capacity 14 | . 14 15 Most Carried 15 | . 15 15 Average Carried 13 | . 13 14 Final Capacity 15 | 8 15 15 Final Carried 15 | 6 15 14 Class Distribution -------------------- 94% | Mutant 5% | Scavenger-Mutant Dominant Class ---------------- Mutant | -10/Materials Mutant | -10/Mines Resources | -11 -10 -10 ----------- Run | Jun Mat Min Matter Collected 1294 | 200 854 240 Remotely . | . . . Salvage Created 866 | . 664 202 Parts 60 | . 42 18 Haulers Intercepted 2 | . 2 . Recyclers Shooed 2 | . 2 . Parts Field Recycled . | . . . Retrieved Matter . | . . . Parts Self-Destructed . | . . . Prevented . | . . . Kills | -11 -10 -10 ------- Run | Jun Mat Min Combat Hostiles Destroyed 24 | . 14 10 Guns 24 | . 14 10 Classes Destroyed 6 | . 6 . Worker 1 | . 1 . Hauler 2 | . 2 . Recycler 1 | . 1 . Operator 2 | . 2 . Swarmer 14 | . 6 8 Grunt 10 | . 8 2 Best Kill Streak 3 | . 3 3 Combat Bots Only 3 | . 3 3 Max Kills in Single Turn 2 | . 2 2 Gunslinging 1 | . 1 1 Exploded . | . . . Melee . | . . . Uniques/NPCs Destroyed . | . . . Combat | -11 -10 -10 -------- Run | Jun Mat Min Damage Taken 1199 | . 646 553 Core 251 | . 169 82 Absorbed by Shields . | . . . Core Remaining (%) 100 | 100 . . Volleys Fired 101 | . 67 34 Largest 2 | . 2 2 Hottest 55 | . 40 55 Shots Fired 186 | . 132 54 Gun 172 | . 132 40 Cannon 14 | . . 14 Launcher . | . . . Special . | . . . Kinetic 186 | . 132 54 Thermal . | . . . Explosive . | . . . Electromagnetic . | . . . Robot Hit Streak 8 | . 8 6 Robot Miss Streak 6 | . 3 6 Penetration Max . | . . . Secondary Targets 4 | . 3 1 Max Gunslinging Chain 1 | . 1 1 Shots Hit Robots 106 | . 83 23 Core Hits 47 | . 35 12 Critical Kills . | . . . Critical Parts Destroyed 1 | . . 1 Critical Strikes 1 | . . 1 Destroy 1 | . . 1 Melee Attacks . | . . . Impact . | . . . Slashing . | . . . Piercing . | . . . Sneak Attacks . | . . . Combat Hostiles . | . . . Follow-up Attacks . | . . . Damage Inflicted 1364 | . 1069 295 Guns 1311 | . 1066 245 Cannons 50 | . . 50 Explosions . | . . . Melee . | . . . Ramming 3 | . 3 . Kinetic 1361 | . 1066 295 Thermal . | . . . Explosive . | . . . Electromagnetic . | . . . Impact . | . . . Slashing . | . . . Piercing . | . . . Highest Corruption 7 | . 2 7 Average Corruption 2 | . 1 2 Corruption Purged . | . . . Corruption Blocked . | . . . Effects 13 | . 1 12 Message Errors 2 | . . 2 Matter Fused 5 | . . 5 Heat Flow Errors 1 | . . 1 Energy Discharges 3 | . . 3 Data Loss (minor) 1 | . . 1 Alerts 1 | . 1 . Overload Shots . | . . . Overflow Damage . | . . . Projectiles . | . . . Explosions . | . . . Melee . | . . . Knockbacks 2 | . . 2 Impact . | . . . Kinetic 2 | . . 2 Secondary . | . . . Self-Inflicted Damage . | . . . Shots . | . . . Rammed . | . . . Targets Rammed 2 | . 2 . Kicked 2 | . 2 . Crushed . | . . . Highest Temperature 149 | . 11 149 Average Temperature 71 | . 4 112 Received Heat Transfer 331 | . 267 64 Siege Activations . | . . . Robots Corrupted . | . . . Combat Hostiles . | . . . Parts Fried . | . . . Impact Corruptions . | . . . Robots Melted . | . . . Combat Hostiles . | . . . Parts Melted . | . . . Heat Transferred . | . . . Parts Sabotaged . | . . . Parts Stolen . | . . . Parts Stripped . | . . . Power Chain Reactions . | . . . Missiles Intercepted . | . . . Alert | -11 -10 -10 ------- Run | Jun Mat Min Peak Influence 198 | . 162 198 Initial . | . . . Average 59 | . 58 61 Maximum Alert Level . | . . . Low Security (%) 100 | . 100 100 Level 1 . | . . . Level 2 . | . . . Level 3 . | . . . Level 4 . | . . . Level 5 . | . . . High Security . | . . . Max Security . | . . . Squads Dispatched 4 | . 3 1 Investigation 2 | . 1 1 Extermination . | . . . Reinforcement 2 | . 2 . Assault . | . . . Garrison . | . . . Intercept . | . . . Searches Triggered . | . . . Construction Impeded . | . . . Haulers Reinforced . | . . . Active Scanning Responses . | . . . Cargo Convoy Interrupts . | . . . Stealth | -11 -10 -10 --------- Run | Jun Mat Min Distress Signals 2 | . 2 . Communications Jammed . | . . . Distress Signals . | . . . Times Spotted 72 | . 41 31 Peak Tracking Total 16 | . 5 16 Tactical Retreats 5 | . 2 3 Traps | -11 -10 -10 ------- Run | Jun Mat Min Traps Triggered 3 | . 3 . Indirectly . | . . . Trap Hack Attempts . | . . . Triggered . | . . . Disarmed . | . . . Reprogrammed . | . . . Reused . | . . . Traps Extracted . | . . . Installed . | . . . Triggered . | . . . Machines | -11 -10 -10 ---------- Run | Jun Mat Min Machines Disabled 1 | . 1 . Max in Single Turn 1 | . 1 . Machines Repaired . | . . . Machines Sabotaged . | . . . Overloaded Fab Kills . | . . . Hacking | -11 -10 -10 --------- Run | Jun Mat Min Machines Accessed 7 | . 6 1 Terminals 6 | . 6 . Fabricators . | . . . Repair Stations . | . . . Recycling Units . | . . . Scanalyzers . | . . . Garrison Access . | . . . Total Hacks 21 | . 20 1 Successful 12 | . 11 1 Failed 9 | . 9 . Catastrophic . | . . . Database Lockouts . | . . . Manual 16 | . 16 . Terminals 20 | . 20 . Fabricators . | . . . Repair Stations . | . . . Recycling Units . | . . . Scanalyzers . | . . . Garrison Access . | . . . Terminal Hacks 5 | . 4 1 Part Schematic 1 | . 1 . Robot Analysis 1 | . 1 . Open Door 1 | . . 1 Unreport Threat 2 | . 2 . Fabricator Hacks . | . . . Repair Station Hacks . | . . . Recycling Unit Hacks . | . . . Scanalyzer . | . . . Garrison Access Hacks . | . . . Unauthorized Hacks 7 | . 7 . Terminals 7 | . 7 . Assimilate 1 | . 1 . Botnet 6 | . 6 . Fabricators . | . . . Repair Stations . | . . . Recycling Units . | . . . Scanalyzers . | . . . Garrison Access . | . . . Data Cores Recovered . | . . . Used . | . . . Hacking Detections 6 | . 6 . Full Trace Events 1 | . 1 . Feedback Events . | . . . Feedback Blocked . | . . . Robot Schematics Acquired . | . . . Robots Built . | . . . Authchips . | . . . Time . | . . . Total Robot Build Rating . | . . . Part Schematics Acquired 1 | . 1 . Parts Built . | . . . Authchips . | . . . Time . | . . . Total Part Build Rating . | . . . Parts Repaired . | . . . Time . | . . . Parts Recycled . | . . . Recycled Matter . | . . . Retrieved Matter . | . . . Retrieved Components . | . . . Parts Scanalyzed . | . . . Part Schematics Acquired . | . . . Parts Damaged . | . . . Bothacking | -11 -10 -10 ------------ Run | Jun Mat Min Used RIF Installer . | . . . Robots Hacked . | . . . Non-combat . | . . . Combat . | . . . Robot Hacks Applied . | . . . Relay Couplers Released . | . . . Fabnet Peak Effective % . | . . . Robots Rewired . | . . . Allies Hacked . | . . . Hacks Repelled . | . . . Allies | -11 -10 -10 -------- Run | Jun Mat Min Total Allies 2 | . 1 1 Largest Group 1 | . 1 1 Highest-Rated Group 31 | . 10 31 Highest-Rated Ally 31 | . 10 31 Total Orders . | . . . Ally Attacks 8 | . . 8 Total Damage 61 | . . 61 Kills 1 | . . 1 Allies Corrupted . | . . . Allies Melted . | . . . Intel | -11 -10 -10 ------- Run | Jun Mat Min Robot Analysis Total 1 | . 1 . Derelict Logs Recovered 1 | . . 1 Drone Launches . | . . . Drone Recoveries . | . . . Exploration | -11 -10 -10 ------------- Run | Jun Mat Min Turns Passed 2323 | . 1621 702 Spaces Moved 1434 | 1 940 493 Core . | . . . Treads 1 | . . 1 Legs 194 | 1 193 . Wheels 1239 | . 747 492 Hover . | . . . Flight . | . . . Fastest Speed 110 | 120 110 110 Average Speed 127 | 120 136 110 Slowest Speed 260 | 120 260 240 Overloaded Moves . | . . . Propulsion Burnouts . | . . . Robots Hopped . | . . . Cave-ins Triggered . | . . . Exploration Rate (%) 56 | 2 99 69 Regions Visited 2 Branch Regions 1 Pre-discovered Areas 1 | . . 1 Known Exits Taken . | . . . Unknown Exits Taken 2 | 1 1 . Scrap Searched 1 | . . 1 Spaces Dug . | . . . Terrain Destroyed . | . . . Melee . | . . . Projectile . | . . . AOE . | . . . Terrain Rammed . | . . . Walls Destroyed . | . . . Machines Disabled . | . . . Actions | -11 -10 -10 --------- Run | Jun Mat Min Total 1745 | . 1144 601 Wait 152 | . 94 58 Move 1432 | . 939 493 Hop . | . . . Pick Up 16 | . 11 5 Fast Attach 7 | . 6 1 Attach 4 | . 2 2 Detach 2 | . 2 . Swap 11 | . 9 2 Drop 18 | . 12 6 Fire 101 | . 67 34 Melee . | . . . Ram . | . . . Kick 2 | . 2 . Crush . | . . . Escape Stasis . | . . . Rewire . | . . . Trap . | . . . Miscellaneous . | . . . Route ------- -11/Junkyard -10/Materials (discovered 5 exits: [*Mat x3] / *Min x2) -10/Mines (discovered 1 exit: [*Mat]) History --------- Turn | Location | Event 1 | -11/Junkyard | Discovered new exit (range 0) 1 | -11/Junkyard | Entered Materials 172 | -10/Materials | Discovered new exit (range 7) 199 | -10/Materials | Discovered new exit (range 16) 318 | -10/Materials | Build established: Mutant 336 | -10/Materials | Discovered new exit (range 16) 723 | -10/Materials | Core integrity fell below 50% 879 | -10/Materials | Discovered new exit (range 4) 1482 | -10/Materials | Discovered new exit (range 9) 1622 | -10/Materials | Entered Mines 1631 | -10/Mines | Met a Derelict bent on vengeance 1769 | -10/Mines | Discovered new exit (range 14) 1819 | -10/Mines | Received a Mining Laser from a helpful Derelict 1970 | -10/Mines | Met a Derelict shopkeep closing up shop 2243 | -10/Mines | Core integrity fell below 20% 2305 | -10/Mines | Assembled infested the area 2324 | -10/Mines | Destroyed by as-90510 with Assembled Rifle Last Messages --------------- 02209_ Destroyed Lgt. Ion Engine. 02221_ S-10 Pest destroyed. 02226_ System corrupted: Heat flow error (+149). 02236_ S-10 Pest knocked back. 02248_ Acquired 13 matter. 02250_ S-10 Pest destroyed. 02253_ Acquired 6 matter. 02279_ S-10 Pest knocked back. 02288_ S-10 Pest destroyed. 02293_ Acquired 14 matter. 02294_ Acquired 1 matter. 02300_ K-01 Serf collects debris. 02305_ ALERT: Infestation in the mines, dispatching Demolisher response squad. 02305_ K-01 Serf collects debris. 02319_ YIXKBLW1:VI<4NSDH6R0CN ,RCDI7E EFA>IDYQ 02320_ Acquired 8 matter. 02321_ Wheel destroyed. 02321_ System corrupted by crushing effect (+5). 02324_ Lgt. Treads destroyed. Map ----- +----------------------------------------------------+ | #####????# ##?????????????????????????? | | #??## #?????????????????????????? | | # #### #??# ??????????????????????????? | | ####?## #### #?????????????????????????????? | | ####?# * ! #????????????????? #?###???????? | | ### % = #?????????????????? ## ##??????? | | #####[ ##?????????????????# ###????? | | ####???## ##???###??????????## ##???? | | ##????????###???## ##???????## ####? | | ###??????????????## #??????## ?? | | ##????????????????# ##?????# """ #??? | | #?????????????????# ####### """ #???? | | #?????????????????# """ #????? | | #????####??????????# #???????? | | #???## #??????????## = ####### ##???????? | | #??## #???????????##[ ##?????### ##????????? | | #### ##????????????# =##?????#### ###?????????? | | #?????????????# #?????## #???????????? | | #?????????????# #?????# #???????????? | | ##????????????# #??#### #???????????? | | ##???????????# #??# ##???????????? | | """" ############# #??# ##????????????? | | """" #??# ## ####?????????????? | | """" ############## ##?## ## #????????????????? | | ##????????????# #### a## #????????????????? | | ####?????????????#[ =@aaa #????????????????? | | ####????????????????#####a #???????????????? | | #???????????????????????# aaaaaa ??????????? | | #??????????????????????? aaa ????????? | | ##????????????????????? a ????????? | | ##??????????????????? ????????? | | #?????????????????? ## ???????? | | #?????????????????## ##?# ????????? | | ##??????????????????##### ##???### ##????????? | | ##????????????????????????###????????##?????????? | | ##???????????????????????????????????????????????? | | ?????????????????????????????????????????????????? | | | | | | | | | | | | | | | | | | | | | | | | | | | +----------------------------------------------------+ Best States ------------- Heat Dissipation 25 Energy Generation 14 Energy Capacity 250 Matter Stores 300 Matter Capacity 300 Sight Range 16 Terrain Scan Density 10 Evasion (%) 55 Recoil Reduction 1 Offensive Hacking 10 Item Schematics ----------------- Med. Storage Unit | -10/Materials | Hacked Robot Schematics ------------------ None Fabricated ------------ Nothing Alien Tech Used ----------------- None Achievements -------------- None Challenges ------------ None Game ------ Seed EnergyWeldingTrap Manual? 0 Play Time 00:21:03 Cumulative 258.1 hours Start 2023.10.05 @ 12:11:06 End 2023.10.05 @ 12:34:59 Sessions 1 Manual Loads 0 Difficulty Rogue Special Mode None Game No. 145 Rogue 101 Adventurer 44 Explorer 0 Win Type - Total 2 Types 2/0/0/0/0/0/0/0/0 Lore% 61 Gallery% 63 Achievement% 58 Wizard Run 0 Options --------- ASCII 0 Keyboard 1 Movement Vi Keybinds 1 Fullscreen 2 Font 18/X11Bold Map View 76x50 Tactical HUD 1 Map Filters NONE Filters NONE Steam 1 RUN: 5ed8d942-c4c5-4dff-809e-4a9b81092bef